bitfinex/quotes_SOLUSD_20241222
["timestamp","ask_amount","ask_price","bid_price","bid_amount"]
[1734855495989,0.97847943,184.87,184.78,0.81149365]
[1734855496206,0.97847943,184.87,184.78,29.61865453]
[1734855497218,2.1005,184.88,184.8,28.80716088]
[1734855497418,2.1005,184.88,184.8,29.6185544]
[1734855497603,2.1005,184.88,184.8,0.81139352]
[1734855498015,2.1005,184.88,184.79,24.41852429]
[1734855498315,1.01427478,184.87,184.78,28.80716088]
[1734855498615,1.01427478,184.87,184.76,28.80716088]
[1734855498820,1.01427478,184.87,184.77,28.80716088]
[1734855499896,1.01427478,184.87,184.69,34.4548]
[1734855499897,20.0,184.82,184.73,28.80716088]
[1734855500214,1.01467923,184.81,184.72,28.80716088]
[1734855500518,1.01467923,184.81,184.7,28.80716088]
[1734855501098,1.01467923,184.81,184.71,28.80716088]
[1734855501293,6.6204,184.85,184.78,28.80716088]
[1734855501491,2.1005,184.88,184.8,28.80716088]
[1734855501714,2.1005,184.88,184.83,28.80716088]
[1734855501893,6.6204,184.89,184.83,28.80716088]
[1734855502092,6.6204,184.89,184.84,28.80716088]
[1734855502292,6.6204,184.89,184.83,28.80716088]
[1734855502518,2.1005,184.92,184.83,28.80716088]
[1734855502696,1.01412075,184.91,184.82,28.80716088]
[1734855503096,1.01412075,184.91,184.81,20.0]
[1734855503097,1.01412075,184.91,184.81,28.80716088]
[1734855503309,1.01412075,184.91,184.79,28.80716088]
[1734855503892,20.0,184.87,184.78,28.80716088]
[1734855504106,1.01437503,184.86,184.78,28.80716088]
[1734855504719,1.01438469,184.86,184.78,28.80716088]
[1734855504922,1.01438469,184.86,184.77,28.80716088]
[1734855505290,20.0,184.87,184.78,28.80716088]
[1734855506318,20.0,184.91,184.8,28.80716088]
[1734855506499,1.01413567,184.9,184.8,28.80716088]
[1734855506816,1.01420014,184.9,184.81,28.80716088]
[1734855507025,1.01420014,184.9,184.8,28.80716088]
[1734855507319,20.0,184.91,184.8,28.80716088]
[1734855507497,2.1005,184.92,184.82,28.80716088]
[1734855507697,2.1005,184.92,184.84,28.80716088]
[1734855507896,2.1005,184.92,184.85,28.80716088]
[1734855508530,2.1005,184.92,184.86,28.80716088]
[1734855508703,2.1005,184.96,184.89,28.80716088]
[1734855510247,2.1005,184.96,184.9,28.80716088]
[1734855510525,6.6204,184.99,184.91,28.80716088]
[1734855510700,6.6204,184.99,184.92,28.80716088]
[1734855511030,2.1005,185.01,184.95,28.80716088]
[1734855511210,6.6204,185.03,184.95,28.80716088]
[1734855511614,6.6204,185.03,184.88,0.12549]
[1734855511615,6.6204,185.03,184.96,28.80716088]
[1734855511810,2.1005,185.06,184.99,28.80716088]
[1734855512126,6.6204,185.09,185.0,28.80716088]
[1734855512509,6.6204,185.09,185.01,28.80716088]
[1734855512839,6.6204,185.09,185.03,28.80716088]
[1734855513038,1.01333791,185.17,185.05,28.80716088]
[1734855513039,6.6204,185.14,185.05,28.80716088]
[1734855513203,6.6204,185.14,185.04,28.80716088]
[1734855514616,6.6204,185.14,185.0,13.5131]
[1734855514617,1.01284906,185.13,185.03,28.80716088]
[1734855514830,20.0,185.11,185.02,28.80716088]
[1734855515741,20.0,185.11,185.03,28.80716088]
[1734855516524,6.6204,185.14,185.05,28.80716088]
[1734855516825,6.6204,185.14,185.07,28.80716088]
[1734855517134,6.6204,185.14,185.08,28.80716088]
[1734855517444,6.6204,185.14,185.1,28.80716088]
[1734855517749,6.0837,185.19,185.1,28.80716088]
[1734855517943,6.0837,185.19,185.12,28.80716088]
[1734855518408,6.0837,185.19,185.11,28.80716088]
[1734855518614,1.01249258,185.18,185.08,28.80716088]
[1734855519028,6.0837,185.19,185.09,28.80716088]
[1734855519228,6.0837,185.19,185.12,28.80716088]
[1734855519407,6.0837,185.19,185.13,28.80716088]
[1734855519800,6.0837,185.19,185.12,28.80716088]
[1734855520006,6.0837,185.19,185.08,23.776884]
[1734855520007,6.0837,185.19,185.11,28.80716088]
[1734855520827,0.6748536,185.23,185.15,28.80716088]
[1734855521016,0.6748536,185.23,185.08,23.776884]
[1734855521017,0.6748536,185.23,185.17,28.80716088]
[1734855522244,0.6748536,185.23,185.16,28.80716088]
[1734855522409,0.6748536,185.23,185.12,28.80716088]
[1734855522611,24.78922414,185.22,185.07,28.80716088]
[1734855522830,24.78922414,185.22,185.09,28.80716088]
[1734855523142,0.6748536,185.23,185.04,50.55546088]
[1734855523143,0.6748536,185.23,185.13,28.80716088]
[1734855523301,0.6748536,185.23,185.16,28.80716088]
[1734855523506,0.6748536,185.23,185.18,28.80716088]
[1734855523928,0.6748536,185.23,185.19,28.80716088]
[1734855524138,0.6748536,185.23,185.2,28.80716088]
[1734855525032,0.6748536,185.23,185.21,52.58404488]
[1734855525550,0.6748536,185.23,185.19,48.80716088]
[1734855525757,0.6748536,185.23,185.18,28.80716088]
[1734855525919,0.6748536,185.23,185.14,28.80716088]
[1734855526123,0.6748536,185.23,185.13,28.80716088]
[1734855526512,1.0123532,185.22,185.1,28.80716088]
[1734855526736,1.0123532,185.22,185.09,28.80716088]
[1734855527069,1.68741244,185.23,185.11,28.80716088]
[1734855527205,1.68741244,185.23,185.12,28.80716088]
[1734855527405,0.6748536,185.23,185.13,28.80716088]
[1734855527628,1.68726836,185.23,185.12,28.80716088]
[1734855527939,1.68726836,185.23,185.11,28.80716088]
[1734855528135,1.68726836,185.23,185.09,28.80716088]
[1734855528343,1.68726836,185.23,185.11,28.80716088]
[1734855528521,1.68726836,185.23,185.1,28.80716088]
[1734855528720,1.68726836,185.23,185.06,13.5091]
[1734855528721,20.0,185.19,185.09,28.80716088]
[1734855529935,23.776884,185.22,185.06,13.5091]
[1734855529936,0.6748536,185.23,185.13,28.80716088]
[1734855530439,0.6748536,185.23,185.14,52.58404488]
[1734855531134,0.6748536,185.23,185.14,28.80716088]
[1734855531437,0.6748536,185.23,185.12,20.0]
[1734855531644,0.6748536,185.23,185.11,28.80716088]
[1734855531815,0.6748536,185.23,185.13,28.80716088]
[1734855532339,0.6748536,185.23,185.15,28.80716088]
[1734855532722,0.6748536,185.23,185.15,52.58404488]
[1734855533038,0.6748536,185.23,185.15,28.80716088]
[1734855533530,0.6748536,185.23,185.18,28.80716088]
[1734855533917,0.6748536,185.23,185.17,28.80716088]
[1734855534135,0.6748536,185.23,185.18,23.776884]
[1734855534741,0.6748536,185.23,185.15,23.776884]
[1734855534946,0.6748536,185.23,185.15,52.58404488]
[1734855535145,0.6748536,185.23,185.18,28.80716088]
[1734855535323,0.6748536,185.23,185.19,23.776884]
[1734855535720,0.6748536,185.23,185.18,23.776884]
[1734855535924,0.6748536,185.23,185.14,28.80716088]
[1734855536221,0.6748536,185.23,185.13,20.0]
[1734855536420,0.6748536,185.23,185.13,48.80716088]
[1734855537045,0.6748536,185.23,185.11,28.80716088]
[1734855537546,2.0216,185.21,185.1,28.80716088]
[1734855537727,2.0216,185.21,185.11,23.776884]
[1734855537932,2.0216,185.21,185.12,28.80716088]
[1734855538129,2.0216,185.21,185.13,28.80716088]
[1734855538446,2.0216,185.21,185.12,23.776884]
[1734855538828,2.0216,185.21,185.12,52.58404488]
[1734855539733,2.0216,185.21,185.11,28.80716088]
[1734855540234,2.0216,185.21,185.14,23.776884]
[1734855540437,2.0216,185.21,185.14,52.58404488]
[1734855540844,2.0216,185.21,185.14,23.776884]
[1734855541247,2.0216,185.21,185.15,28.80716088]
[1734855541438,2.0216,185.21,185.16,52.58404488]
[1734855541638,0.6748536,185.23,185.16,28.80716088]
[1734855541858,0.6748536,185.23,185.15,28.80716088]
[1734855542081,0.6748536,185.23,185.16,28.80716088]
[1734855542235,0.6748536,185.23,185.17,23.776884]
[1734855542439,0.6748536,185.23,185.18,23.776884]
[1734855542858,0.6748536,185.23,185.18,52.58404488]
[1734855543058,0.6748536,185.23,185.2,23.776884]
[1734855543543,0.6748536,185.23,185.2,52.58404488]
[1734855544050,0.6748536,185.23,185.22,52.58404488]
[1734855544846,0.6748536,185.23,185.22,81.39120576]
[1734855545152,5.36e-05,185.23,185.22,220.97404488]
[1734855545353,5.36e-05,185.23,185.22,249.78120576]
[1734855545757,5.36e-05,185.23,185.22,249.90669576]
[1734855546065,5.36e-05,185.23,185.22,114.00669576]
[1734855546271,5.36e-05,185.23,185.22,130.28669576]
[1734855547362,8.1321,185.38,185.28,32.61549]
[1734855547562,8.1321,185.43,185.35,28.80716088]
[1734855547753,8.1321,185.43,185.36,28.80716088]
[1734855547939,8.1321,185.43,185.37,28.80716088]
[1734855548339,8.1321,185.43,185.35,28.80716088]
[1734855548657,8.1321,185.43,185.37,28.80716088]
[1734855549765,8.1321,185.43,185.38,23.776884]
[1734855549934,1.9985,185.48,185.39,28.80716088]
[1734855550141,6.1336,185.47,185.38,52.58404488]
[1734855550449,6.1336,185.47,185.39,28.80716088]
[1734855550645,6.1336,185.47,185.4,52.58404488]
[1734855550856,1.9985,185.48,185.4,52.58404488]
[1734855551165,6.1336,185.52,185.4,52.58404488]
[1734855551461,1.01077073,185.51,185.4,23.776884]
[1734855551951,20.0,185.49,185.4,28.80716088]
[1734855552346,6.1336,185.58,185.4,81.51669576]
[1734855552561,6.1336,185.58,185.5,28.80716088]
[1734855552764,6.1336,185.58,185.52,28.80716088]
[1734855553066,6.1336,185.58,185.46,0.12549]
[1734855553252,6.1336,185.58,185.53,28.80716088]
[1734855553567,6.1336,185.63,185.54,28.80716088]
[1734855553881,6.1336,185.63,185.53,28.30716088]
[1734855554384,1.01013946,185.74,185.49,28.80716088]
[1734855554385,6.1336,185.69,185.57,28.80716088]
[1734855554545,1.00995924,185.68,185.57,28.80716088]
[1734855554735,6.1336,185.69,185.57,28.80716088]
[1734855554936,6.1336,185.69,185.58,23.776884]
[1734855555348,1.009902,185.68,185.57,28.80716088]
[1734855555549,1.009902,185.68,185.55,28.80716088]
[1734855555885,1.009902,185.68,185.54,23.776884]
[1734855556184,20.0,185.66,185.54,23.776884]
[1734855556377,1.01013691,185.65,185.54,23.776884]
[1734855556578,1.01013691,185.65,185.49,28.80716088]
[1734855556785,8.1212,185.59,185.47,28.80716088]
[1734855556945,20.0,185.56,185.43,28.80716088]
[1734855557145,1.01069098,185.55,185.4,28.80716088]
[1734855557444,23.776884,185.54,185.4,28.80716088]
[1734855557669,20.0,185.51,185.39,28.80716088]
[1734855557872,1.01089203,185.5,185.39,28.80716088]
[1734855559150,20.0,185.56,185.44,23.776884]
[1734855559454,20.0,185.56,185.38,13.4855]
[1734855559455,20.0,185.56,185.47,52.58404488]
[1734855560285,20.0,185.56,185.49,23.776884]
[1734855560787,20.0,185.56,185.47,28.80716088]
[1734855560986,1.01050735,185.55,185.44,28.80716088]
[1734855561279,1.01050735,185.55,185.34,6.1728]
[1734855561446,1.01050735,185.55,185.38,28.80716088]
[1734855561653,1.01050735,185.55,185.41,28.80716088]
[1734855561878,23.776884,185.54,185.42,28.80716088]
[1734855562180,20.0,185.51,185.42,25.93250563]
[1734855562542,23.776884,185.46,185.25,135.9]
[1734855562884,20.0,185.41,185.3,25.93250563]
[1734855563351,20.0,185.43,185.32,25.93250563]
[1734855563857,1.01129725,185.42,185.32,25.93250563]
[1734855564169,20.0,185.43,185.32,25.93250563]
[1734855564467,1.01131706,185.42,185.32,25.93250563]
[1734855564671,20.0,185.38,185.3,25.93250563]
[1734855566068,6.0336,185.41,185.3,25.93250563]
[1734855566267,20.0,185.38,185.3,25.93250563]
[1734855567659,1.0114611,185.37,185.28,25.93250563]
[1734855568050,1.0114611,185.37,185.26,25.93250563]
[1734855568657,20.0,185.33,185.23,25.93250563]
[1734855568862,6.0336,185.31,185.21,25.93250563]
[1734855569066,20.0,185.28,185.21,25.93250563]
[1734855569267,20.0,185.28,185.19,25.93250563]
[1734855569455,6.0336,185.31,185.23,25.93250563]
[1734855569658,6.0336,185.31,185.25,25.93250563]
[1734855569855,6.0336,185.31,185.23,25.93250563]
[1734855570079,6.0336,185.31,185.25,25.93250563]
[1734855570260,6.0336,185.36,185.27,25.93250563]
[1734855571493,6.0336,185.36,185.3,23.776884]
[1734855571800,6.0336,185.36,185.31,25.93250563]
[1734855572263,2.0876,185.38,185.31,25.93250563]
[1734855572466,6.0336,185.53,185.41,43.776884]
[1734855572668,6.0336,185.53,185.45,25.93250563]
[1734855572878,1.01065289,185.52,185.43,25.93250563]
[1734855573182,1.01065289,185.52,185.39,25.93250563]
[1734855574803,23.776884,185.51,185.39,25.93250563]
[1734855574973,1.01093436,185.5,185.39,25.93250563]
[1734855575165,20.0,185.5,185.41,25.93250563]
[1734855575564,1.01092064,185.49,185.41,25.93250563]
[1734855575781,1.01096983,185.49,185.41,25.93250563]
[1734855576209,20.0,185.5,185.41,25.93250563]
[1734855576565,1.01093519,185.49,185.41,25.93250563]
[1734855576765,20.0,185.5,185.43,25.93250563]
[1734855577790,1.01092108,185.49,185.43,25.93250563]
[1734855578570,1.01092108,185.49,185.41,25.93250563]
[1734855578773,20.0,185.5,185.42,25.93250563]
[1734855579071,20.0,185.5,185.44,25.93250563]
[1734855579397,20.0,185.5,185.43,25.93250563]
[1734855579570,6.0336,185.53,185.44,25.93250563]
[1734855579795,6.0336,185.53,185.46,25.93250563]
[1734855579996,1.01065572,185.52,185.45,25.93250563]
[1734855581117,1.01065572,185.52,185.4,25.93250563]
[1734855581303,23.776884,185.51,185.37,25.93250563]
[1734855581495,23.776884,185.49,185.35,25.93250563]
[1734855581697,23.776884,185.47,185.35,25.93250563]
[1734855581899,8.503,185.45,185.35,25.93250563]
[1734855582116,20.0,185.42,185.33,28.63476353]
[1734855582313,1.01143851,185.41,185.3,28.63476353]
[1734855582817,1.01143851,185.41,185.31,28.63476353]
[1734855582997,23.776884,185.4,185.29,28.63476353]
[1734855583191,6.4263,185.37,185.28,28.63476353]
[1734855583397,2.0767,185.35,185.26,28.63476353]
[1734855583618,2.0767,185.35,185.27,28.63476353]
[1734855584001,2.0767,185.35,185.28,28.63476353]
[1734855584205,1.01175154,185.34,185.27,28.63476353]
[1734855584400,1.01175154,185.34,185.26,28.63476353]
[1734855584621,21.01175154,185.34,185.26,28.63476353]
[1734855588839,20.0,185.34,185.28,28.63476353]
[1734855589138,20.0,185.34,185.29,28.63476353]
[1734855589443,6.4263,185.37,185.32,28.63476353]
[1734855589743,6.4263,185.37,185.23,64.266984]
[1734855589744,6.4263,185.37,185.34,28.63476353]
[1734855590621,6.4263,185.37,185.31,28.63476353]
[1734855590819,6.4263,185.37,185.32,28.63476353]
[1734855591552,6.4263,185.37,185.31,28.63476353]
[1734855592237,1.01157182,185.36,185.29,28.63476353]
[1734855592419,1.01157182,185.36,185.28,28.63476353]
[1734855592931,1.01157182,185.36,185.29,28.63476353]
[1734855593338,6.4263,185.37,185.29,28.63476353]
[1734855594061,6.4263,185.37,185.31,28.63476353]
[1734855594344,6.4263,185.37,185.33,28.63476353]
[1734855597048,6.4263,185.37,185.31,28.63476353]
[1734855598632,6.4263,185.37,185.27,13.4938]
[1734855598633,6.4263,185.37,185.33,28.63476353]
[1734855599742,2.0767,185.4,185.34,28.63476353]
[1734855599927,6.6399,185.42,185.37,28.63476353]
[1734855600530,6.6399,185.42,185.35,28.63476353]
[1734855600725,1.01130237,185.41,185.34,28.63476353]
[1734855601044,1.01130237,185.41,185.32,28.63476353]
[1734855601241,1.01130237,185.41,185.26,19.7787]
[1734855601242,1.01130237,185.41,185.3,28.63476353]
[1734855601455,2.0545,185.36,185.27,28.63476353]
[1734855601762,1.01177606,185.35,185.27,28.63476353]
[1734855601931,1.01177606,185.35,185.22,42.13156353]
[1734855601932,1.01177606,185.35,185.28,28.63476353]
[1734855602120,1.01177606,185.35,185.27,28.63476353]
[1734855602334,3.06624717,185.36,185.28,28.63476353]
[1734855602545,2.0545,185.36,185.3,28.63476353]
[1734855602867,3.06611374,185.36,185.29,28.63476353]
[1734855603072,3.06611374,185.36,185.25,13.4952]
[1734855603073,2.0545,185.36,185.31,28.63476353]
[1734855603254,6.6399,185.42,185.33,28.63476353]
[1734855603255,2.0545,185.4,185.33,28.63476353]
[1734855603459,2.0545,185.4,185.34,28.63476353]
[1734855605861,2.0545,185.4,185.33,28.63476353]
[1734855607138,2.0545,185.4,185.35,28.63476353]
[1734855607357,2.0545,185.45,185.37,28.63476353]
[1734855607557,2.0545,185.45,185.39,28.63476353]
[1734855608147,2.0545,185.45,185.38,28.63476353]
[1734855608658,3.06564535,185.45,185.38,28.63476353]
[1734855608966,3.06564535,185.45,185.37,28.63476353]
[1734855609164,23.776884,185.44,185.34,28.63476353]
[1734855609343,20.0,185.41,185.34,28.63476353]
[1734855609755,20.0,185.41,185.33,28.63476353]
[1734855609958,1.01142233,185.4,185.31,28.63476353]
[1734855610663,25.831384,185.37,185.27,28.63476353]
[1734855610864,1.01177137,185.36,185.26,28.63476353]
[1734855611162,1.01177137,185.36,185.22,42.13186353]
[1734855611163,1.01177137,185.36,185.24,28.63476353]
[1734855611364,23.776884,185.35,185.24,28.63476353]
[1734855611570,1.01190913,185.34,185.24,28.63476353]
[1734855611764,1.01190913,185.34,185.25,28.63476353]
[1734855612358,20.0,185.35,185.26,28.63476353]
[1734855612551,1.01178157,185.34,185.26,28.63476353]
[1734855613067,20.0,185.35,185.27,28.63476353]
[1734855613552,1.01172228,185.34,185.26,28.63476353]
[1734855613744,1.01172228,185.34,185.25,28.63476353]
[1734855613956,23.776884,185.33,185.25,28.63476353]
[1734855614151,1.01197404,185.32,185.23,28.63476353]
[1734855614460,1.01197404,185.32,185.22,28.63476353]
[1734855614658,1.01197404,185.32,185.21,28.63476353]
[1734855614659,20.0,185.3,185.21,28.63476353]
[1734855614874,1.01209966,185.29,185.21,28.63476353]
[1734855615060,6.5776,185.28,185.2,28.63476353]
[1734855615258,3.01837495,185.27,185.19,28.63476353]
[1734855615560,2.0062,185.27,185.2,28.63476353]
[1734855615951,2.0062,185.27,185.21,28.63476353]
[1734855616278,2.0062,185.27,185.22,28.63476353]
[1734855616474,6.5776,185.28,185.24,28.63476353]
[1734855616674,2.0062,185.32,185.27,28.63476353]
[1734855616863,2.0062,185.32,185.28,28.63476353]
[1734855617451,2.0062,185.32,185.29,28.63476353]
[1734855617655,2.0062,185.37,185.3,28.63476353]
[1734855617955,2.0062,185.37,185.32,28.63476353]
[1734855618259,2.0062,185.37,185.3,28.63476353]
[1734855618465,1.01152113,185.36,185.28,28.63476353]
[1734855619779,20.0,185.35,185.28,28.63476353]
[1734855620075,2.0062,185.37,185.31,28.63476353]
[1734855620581,6.5776,185.38,185.35,28.63476353]
[1734855620874,2.0062,185.41,185.37,28.63476353]
[1734855621083,6.5776,185.43,185.37,28.63476353]
[1734855621986,6.5776,185.43,185.31,42.12506353]
[1734855621987,6.5776,185.43,185.38,28.63476353]
[1734855623182,2.0062,185.46,185.4,28.63476353]
[1734855623597,6.5776,185.47,185.42,28.63476353]
[1734855623772,8.5838,185.51,185.43,28.63476353]
[1734855623971,1.01091802,185.5,185.42,28.63476353]
[1734855624156,1.01091802,185.5,185.41,28.63476353]
[1734855625601,8.5838,185.51,185.43,28.63476353]
[1734855626484,8.5838,185.51,185.45,28.63476353]
[1734855628002,8.5838,185.51,185.43,28.63476353]
[1734855628298,8.5838,185.51,185.44,28.63476353]
[1734855628669,8.5838,185.51,185.43,28.63476353]
[1734855629287,8.5838,185.51,185.38,28.63476353]
[1734855629288,20.0,185.47,185.38,28.63476353]
[1734855629495,1.01111199,185.46,185.37,28.63476353]
[1734855629664,1.01111199,185.46,185.36,28.63476353]
[1734855630192,1.01111199,185.46,185.38,28.63476353]
[1734855630569,20.0,185.47,185.38,28.63476353]
[1734855630978,1.01108449,185.46,185.37,28.63476353]
[1734855631494,20.0,185.47,185.38,28.63476353]
[1734855632075,20.0,185.47,185.41,28.63476353]
[1734855632288,1.01091216,185.5,185.41,28.63476353]
[1734855632495,8.5838,185.51,185.42,28.63476353]
[1734855632693,1.01087374,185.5,185.42,28.63476353]
[1734855632893,1.01088022,185.5,185.42,28.63476353]
[1734855633302,8.5838,185.51,185.41,28.63476353]
[1734855634014,1.01086269,185.5,185.41,28.63476353]
[1734855634215,1.01086269,185.5,185.4,48.63476353]
[1734855638008,23.776884,185.49,185.37,28.63476353]
[1734855638191,1.01113421,185.48,185.37,28.63476353]
[1734855638392,1.01113421,185.48,185.38,28.63476353]
[1734855639507,8.3067,185.42,185.33,28.63476353]
[1734855639690,1.01141002,185.41,185.32,28.63476353]
[1734855640635,1.01141002,185.41,185.31,28.63476353]
[1734855640816,23.776884,185.4,185.3,28.63476353]
[1734855641129,1.0115681,185.39,185.3,28.63476353]
[1734855641510,23.776884,185.38,185.29,28.63476353]
[1734855641713,8.3067,185.42,185.27,28.63476353]
[1734855641714,23.776884,185.36,185.27,28.63476353]
[1734855642031,1.01175253,185.35,185.26,28.63476353]
[1734855642621,8.3067,185.32,185.21,28.63476353]
[1734855642826,20.0,185.29,185.2,28.63476353]
[1734855643032,20.0,185.29,185.22,28.63476353]
[1734855643550,20.0,185.29,185.23,28.63476353]
[1734855643909,1.01210743,185.31,185.23,28.63476353]
[1734855644226,1.01194101,185.31,185.24,28.63476353]
[1734855644402,8.3067,185.32,185.25,28.63476353]
[1734855647222,2.0525,185.37,185.29,28.63476353]
[1734855647432,8.502,185.37,185.28,28.63476353]
[1734855647636,1.01176019,185.36,185.26,28.63476353]
[1734855648345,1.01176019,185.36,185.25,28.63476353]
[1734855648635,20.0,185.32,185.24,28.63476353]
[1734855648944,1.01187501,185.31,185.23,28.63476353]
[1734855649322,20.0,185.32,185.25,28.63476353]
[1734855650031,20.0,185.32,185.15,195.3442]
[1734855650335,1.01178061,185.31,185.21,28.63476353]
[1734855650721,1.01178061,185.31,185.22,28.63476353]
[1734855650920,20.0,185.32,185.23,28.63476353]
[1734855651159,1.01196332,185.34,185.26,28.63476353]
[1734855651649,23.776884,185.36,185.26,28.63476353]
[1734855652117,1.01166958,185.35,185.26,28.63476353]
[1734855652317,8.502,185.37,185.27,28.63476353]
[1734855652543,8.502,185.37,185.23,13.4966]
[1734855652544,1.01163405,185.36,185.28,28.63476353]
[1734855652722,1.01163405,185.36,185.27,28.63476353]
[1734855654519,1.01163405,185.36,185.28,28.63476353]
[1734855654718,1.01163405,185.36,185.27,28.63476353]
[1734855655223,8.502,185.37,185.29,28.63476353]
[1734855655420,8.502,185.37,185.3,28.63476353]
[1734855655624,8.502,185.37,185.31,28.63476353]
[1734855655940,8.502,185.37,185.3,28.63476353]
[1734855656846,8.502,185.37,185.29,28.63476353]
[1734855657168,1.01160411,185.36,185.27,28.63476353]
[1734855659231,8.502,185.37,185.3,28.63476353]
[1734855659644,8.502,185.37,185.28,48.63476353]
[1734855659948,1.01163277,185.36,185.26,28.63476353]
[1734855660159,1.01163277,185.36,185.25,28.63476353]
[1734855660520,20.0,185.34,185.27,28.63476353]
[1734855660735,8.502,185.37,185.29,28.63476353]
[1734855660940,8.502,185.37,185.28,28.63476353]
[1734855661133,8.502,185.37,185.27,28.63476353]
[1734855661554,8.502,185.37,185.28,28.63476353]
[1734855661741,8.502,185.37,185.27,28.63476353]
[1734855662145,24.78851536,185.36,185.26,17.6357771]
[1734855662456,24.78851536,185.36,185.27,17.6357771]
[1734855662753,20.0,185.33,185.23,17.6357771]
[1734855663236,20.0,185.33,185.24,17.6357771]
[1734855663870,24.78870501,185.32,185.22,17.6357771]
[1734855664031,20.0,185.28,185.19,17.6357771]
[1734855664236,1.01208848,185.27,185.18,17.6357771]
[1734855664440,20.0,185.28,185.19,17.6357771]
[1734855664628,20.0,185.28,185.2,17.6357771]
[1734855665861,1.01207196,185.27,185.13,13.5039]
[1734855666080,20.0,185.23,185.13,28.6975963]
[1734855666360,20.0,185.23,185.14,28.6975963]
[1734855666740,1.01236792,185.22,185.13,28.6975963]
[1734855666946,1.01236792,185.22,185.12,28.6975963]
[1734855667259,23.776884,185.21,185.12,28.6975963]
[1734855667435,1.0125672,185.2,185.11,28.6975963]
[1734855667643,20.0,185.18,185.09,28.6975963]
[1734855667839,1.01260483,185.2,185.11,28.6975963]
[1734855668047,20.0,185.18,185.12,28.6975963]
[1734855668435,20.0,185.18,185.11,28.6975963]
[1734855668636,20.0,185.18,185.1,28.6975963]
[1734855669142,8.4161,185.26,185.14,28.6975963]
[1734855669342,20.0,185.23,185.16,28.6975963]
[1734855669661,8.4161,185.26,185.17,28.6975963]
[1734855669874,8.4161,185.26,185.06,136.02549]
[1734855669875,8.4161,185.26,185.16,28.6975963]
[1734855670376,8.4161,185.26,185.18,28.6975963]
[1734855671251,8.4161,185.26,185.19,28.6975963]
[1734855671458,8.4161,185.26,185.2,28.6975963]
[1734855671984,8.4161,185.3,185.22,28.6975963]
[1734855672150,8.4161,185.3,185.23,28.6975963]
[1734855672352,8.4161,185.3,185.24,28.6975963]
[1734855672570,8.4161,185.3,185.25,28.6975963]
[1734855672963,8.4161,185.3,185.24,28.6975963]
[1734855674380,8.4161,185.3,185.23,28.6975963]
[1734855674589,8.4161,185.3,185.2,28.6975963]
[1734855674883,20.0,185.26,185.17,28.6975963]
[1734855675261,20.0,185.26,185.16,28.6975963]
[1734855675457,20.0,185.26,185.17,28.6975963]
[1734855675861,8.4161,185.3,185.19,28.6975963]
[1734855676084,8.4161,185.3,185.13,28.6975963]
[1734855676085,8.4161,185.3,185.21,28.6975963]
[1734855676676,8.4161,185.3,185.2,28.6975963]
[1734855676870,24.78890282,185.29,185.19,28.6975963]
[1734855677074,8.4161,185.3,185.2,28.6975963]
[1734855677795,1.01198898,185.29,185.2,28.6975963]
[1734855677973,8.4161,185.3,185.2,28.6975963]
[1734855678298,8.4161,185.3,185.23,28.6975963]
[1734855678768,8.4161,185.3,185.21,28.6975963]
[1734855678968,8.4161,185.3,185.2,28.6975963]
[1734855679194,8.4161,185.3,185.21,28.6975963]
[1734855679393,8.4161,185.3,185.22,28.6975963]
[1734855680000,8.4161,185.3,185.21,28.6975963]
[1734855680202,1.01198243,185.29,185.21,28.6975963]
[1734855680696,8.4161,185.3,185.21,28.6975963]
[1734855681005,8.4161,185.3,185.23,28.6975963]
[1734855681790,8.4161,185.3,185.25,28.6975963]
[1734855681791,6.3545,185.3,185.25,28.6975963]
[1734855681985,1.9978,185.35,185.25,28.6975963]
[1734855682884,1.9978,185.35,185.27,28.6975963]
[1734855683316,1.01174251,185.4,185.28,28.6975963]
[1734855683502,1.9978,185.4,185.33,28.6975963]
[1734855684002,1.9978,185.4,185.25,32.44]
[1734855684003,1.9978,185.4,185.32,28.6975963]
[1734855684215,3.00921965,185.4,185.31,28.6975963]
[1734855684392,1.9978,185.4,185.31,28.6975963]
[1734855684949,3.00925057,185.4,185.29,28.6975963]
[1734855685103,3.00925057,185.4,185.3,28.6975963]
[1734855685303,1.9978,185.4,185.3,28.6975963]
[1734855685506,1.9978,185.4,185.31,28.6975963]
[1734855685810,1.9978,185.4,185.23,40.4901]
[1734855685811,1.9978,185.4,185.33,28.6975963]
[1734855686113,1.9978,185.4,185.35,28.6975963]